[Event "Late-Titled-Tuesday-Blitz-October-10-2023"]
[Site "Chess.com"]
[Date "2023.10.10"]
[Round "2"]
[White "rasmussvane"]
[Black "SanchezKelvin"]
[Result "1-0"]
[WhiteElo "2999"]
[BlackElo "2608"]
[TimeControl "180+1"]
[EndTime "14:17:09 PDT"]
[Termination "rasmussvane won by checkmate"]

1. Nf3 {[%clk 0:03:00.9]} 1... b6 {[%clk 0:02:37.5]} 2. g3 {[%clk 0:02:59.4]}
2... Bb7 {[%clk 0:02:37.7]} 3. Bg2 {[%clk 0:02:58.6]} 3... Nf6 {[%clk
0:02:37.2]} 4. O-O {[%clk 0:02:58.9]} 4... c5 {[%clk 0:02:35.1]} 5. c4 {[%clk
0:02:58.3]} 5... e6 {[%clk 0:02:34.9]} 6. Nc3 {[%clk 0:02:57.1]} 6... Be7 {[%clk
0:02:34.7]} 7. d4 {[%clk 0:02:57.1]} 7... cxd4 {[%clk 0:02:34.4]} 8. Qxd4 {[%clk
0:02:58]} 8... d6 {[%clk 0:02:32.5]} 9. Bg5 {[%clk 0:02:56.9]} 9... Nbd7 {[%clk
0:02:30.9]} 10. Nb5 {[%clk 0:02:45.6]} 10... Nc5 {[%clk 0:02:27.7]} 11. Rfd1
{[%clk 0:02:40.5]} 11... d5 {[%clk 0:02:17.4]} 12. cxd5 {[%clk 0:02:36.2]} 12...
Bxd5 {[%clk 0:02:14]} 13. Nc3 {[%clk 0:02:33.8]} 13... O-O {[%clk 0:02:10.5]}
14. Nxd5 {[%clk 0:02:14.4]} 14... Nxd5 {[%clk 0:02:08.5]} 15. Bxe7 {[%clk
0:02:15.3]} 15... Nxe7 {[%clk 0:02:02.4]} 16. b4 {[%clk 0:02:05.7]} 16... Na6
{[%clk 0:01:42.7]} 17. Qe4 {[%clk 0:01:51.9]} 17... Nd5 {[%clk 0:01:32.4]} 18.
a3 {[%clk 0:01:25.9]} 18... Qe7 {[%clk 0:01:20.9]} 19. Qd3 {[%clk 0:01:23]}
19... Nac7 {[%clk 0:01:14.2]} 20. e4 {[%clk 0:01:23]} 20... Nf6 {[%clk
0:01:12.5]} 21. Nd4 {[%clk 0:01:22.9]} 21... e5 {[%clk 0:00:58.6]} 22. Nf5
{[%clk 0:01:19.9]} 22... Qe6 {[%clk 0:00:58.3]} 23. Rac1 {[%clk 0:01:15.9]}
23... Rad8 {[%clk 0:00:22.1]} 24. Qxd8 {[%clk 0:01:06]} 24... Rxd8 {[%clk
0:00:23]} 25. Rxd8+ {[%clk 0:01:06.1]} 25... Nce8 {[%clk 0:00:23.4]} 26. Rcc8
{[%clk 0:00:54.6]} 26... h5 {[%clk 0:00:18.8]} 27. Nd6 {[%clk 0:00:49.8]} 27...
Kh7 {[%clk 0:00:18.5]} 28. Nxe8 {[%clk 0:00:50.1]} 28... Ng4 {[%clk 0:00:18]}
29. h3 {[%clk 0:00:46.4]} 29... Nh6 {[%clk 0:00:16.7]} 30. Nc7 {[%clk 0:00:39]}
30... Qa2 {[%clk 0:00:16]} 31. Nd5 {[%clk 0:00:39]} 31... Kg6 {[%clk 0:00:13.6]}
32. Rc6+ {[%clk 0:00:36]} 32... f6 {[%clk 0:00:12]} 33. Ne7+ {[%clk 0:00:36.1]}
33... Kf7 {[%clk 0:00:11.4]} 34. Rd7 {[%clk 0:00:35.8]} 34... Ke8 {[%clk
0:00:11.4]} 35. Rb7 {[%clk 0:00:35.4]} 35... h4 {[%clk 0:00:06.9]} 36. Rc8+
{[%clk 0:00:27.6]} 36... Kf7 {[%clk 0:00:07]} 37. Nf5+ {[%clk 0:00:28.2]} 37...
Kg6 {[%clk 0:00:06.5]} 38. Rxg7+ {[%clk 0:00:28.5]} 38... Kh5 {[%clk 0:00:04.2]}
39. g4+ {[%clk 0:00:29]} 39... Nxg4 {[%clk 0:00:02.7]} 40. hxg4# {[%clk
0:00:29.9]} 1-0

[Event "Late-Titled-Tuesday-Blitz-October-10-2023"]
[Site "Chess.com"]
[Date "2023.10.10"]
[Round "2"]
[White "Zampronha1971"]
[Black "Battever"]
[Result "0-1"]
[WhiteElo "2285"]
[BlackElo "2518"]
[TimeControl "180+1"]
[EndTime "14:17:09 PDT"]
[Termination "Battever won by checkmate"]

1. e4 {[%clk 0:03:00.9]} 1... c5 {[%clk 0:02:58.5]} 2. Nf3 {[%clk 0:03:00.8]}
2... a6 {[%clk 0:02:57.1]} 3. Nc3 {[%clk 0:02:59.1]} 3... e6 {[%clk 0:02:53.6]}
4. d4 {[%clk 0:02:59.4]} 4... cxd4 {[%clk 0:02:54.5]} 5. Nxd4 {[%clk 0:02:59.6]}
5... b5 {[%clk 0:02:54.4]} 6. Bd3 {[%clk 0:02:56.7]} 6... Bc5 {[%clk 0:02:52]}
7. Nb3 {[%clk 0:02:53]} 7... Ba7 {[%clk 0:02:52]} 8. O-O {[%clk 0:02:52.4]} 8...
Nc6 {[%clk 0:02:32.6]} 9. Qg4 {[%clk 0:02:28.2]} 9... Nf6 {[%clk 0:02:23.5]} 10.
Qxg7 {[%clk 0:02:23.3]} 10... Rg8 {[%clk 0:02:23.9]} 11. Qh6 {[%clk 0:02:24]}
11... Ne5 {[%clk 0:02:24.2]} 12. Kh1 {[%clk 0:01:36.7]} 12... Neg4 {[%clk
0:02:07.2]} 13. Qh4 {[%clk 0:01:35.3]} 13... Bb7 {[%clk 0:01:42.3]} 14. Bg5
{[%clk 0:01:29.3]} 14... Nxf2+ {[%clk 0:01:13.2]} 15. Rxf2 {[%clk 0:01:06.8]}
15... Bxf2 {[%clk 0:01:14.1]} 16. Qxf2 {[%clk 0:00:35.5]} 16... Rxg5 {[%clk
0:01:14]} 17. Rf1 {[%clk 0:00:30.9]} 17... Rg6 {[%clk 0:01:11.9]} 18. a4 {[%clk
0:00:24]} 18... b4 {[%clk 0:01:07.4]} 19. Ne2 {[%clk 0:00:24.6]} 19... Qc7
{[%clk 0:00:53.8]} 20. Nf4 {[%clk 0:00:19.3]} 20... Rh6 {[%clk 0:00:50.8]} 21.
Nd4 {[%clk 0:00:13.9]} 21... O-O-O {[%clk 0:00:48.6]} 22. Nde2 {[%clk
0:00:13.3]} 22... Rxh2+ {[%clk 0:00:42.9]} 23. Kg1 {[%clk 0:00:07.9]} 23... Rg8
{[%clk 0:00:42.9]} 24. c3 {[%clk 0:00:01.5]} 24... b3 {[%clk 0:00:40.7]} 25. c4
{[%clk 0:00:01.5]} 25... Rh6 {[%clk 0:00:21.9]} 26. Rc1 {[%clk 0:00:01.9]} 26...
Ng4 {[%clk 0:00:21.3]} 27. Qd4 {[%clk 0:00:01.8]} 27... e5 {[%clk 0:00:20.2]}
28. Qa7 {[%clk 0:00:01.2]} 28... exf4 {[%clk 0:00:20]} 29. c5 {[%clk 0:00:01.7]}
29... Ne3 {[%clk 0:00:18.7]} 30. c6 {[%clk 0:00:01.7]} 30... Rxg2# {[%clk
0:00:18.8]} 0-1

[Event "Late-Titled-Tuesday-Blitz-October-10-2023"]
[Site "Chess.com"]
[Date "2023.10.10"]
[Round "2"]
[White "nihalsarin"]
[Black "johnathan113"]
[Result "1-0"]
[WhiteElo "3115"]
[BlackElo "2658"]
[TimeControl "180+1"]
[EndTime "14:17:10 PDT"]
[Termination "nihalsarin won on time"]

1. e4 {[%clk 0:03:00.9]} 1... c5 {[%clk 0:02:59.2]} 2. Nf3 {[%clk 0:03:01]} 2...
g6 {[%clk 0:02:59.7]} 3. d4 {[%clk 0:02:58.3]} 3... cxd4 {[%clk 0:03:00.6]} 4.
Qxd4 {[%clk 0:02:58.4]} 4... Nf6 {[%clk 0:03:00.8]} 5. Bc4 {[%clk 0:02:55.5]}
5... Nc6 {[%clk 0:02:56.9]} 6. Qd3 {[%clk 0:02:55.6]} 6... Bg7 {[%clk
0:02:54.3]} 7. Nc3 {[%clk 0:02:56.3]} 7... O-O {[%clk 0:02:51.2]} 8. O-O {[%clk
0:02:56.9]} 8... d6 {[%clk 0:02:40.5]} 9. h3 {[%clk 0:02:57.2]} 9... a6 {[%clk
0:02:39.8]} 10. Bb3 {[%clk 0:02:57.2]} 10... Na5 {[%clk 0:02:33.6]} 11. Bg5
{[%clk 0:02:57.5]} 11... b5 {[%clk 0:02:28.1]} 12. Rad1 {[%clk 0:02:57.2]} 12...
Nxb3 {[%clk 0:02:13.8]} 13. axb3 {[%clk 0:02:56.6]} 13... b4 {[%clk 0:02:05.4]}
14. Nd5 {[%clk 0:02:47.8]} 14... Nxd5 {[%clk 0:02:04.2]} 15. exd5 {[%clk
0:02:48.7]} 15... Bxb2 {[%clk 0:01:52.8]} 16. Nd4 {[%clk 0:02:48.6]} 16... Bb7
{[%clk 0:01:42.5]} 17. Rfe1 {[%clk 0:02:47.5]} 17... Re8 {[%clk 0:01:42.1]} 18.
Qf3 {[%clk 0:02:34.4]} 18... Rc8 {[%clk 0:01:38.5]} 19. h4 {[%clk 0:02:34.7]}
19... Rc5 {[%clk 0:01:30.5]} 20. Nc6 {[%clk 0:02:24.2]} 20... Bxc6 {[%clk
0:01:30.6]} 21. dxc6 {[%clk 0:02:25.1]} 21... Qc7 {[%clk 0:01:31.2]} 22. Qe4
{[%clk 0:02:22.9]} 22... Qxc6 {[%clk 0:01:27.5]} 23. Qxb4 {[%clk 0:02:21.3]}
23... Bc3 {[%clk 0:01:20.9]} 24. Qf4 {[%clk 0:02:12.8]} 24... Bxe1 {[%clk
0:01:18.4]} 25. Rxe1 {[%clk 0:02:13.7]} 25... Rf5 {[%clk 0:01:12.1]} 26. Qd2
{[%clk 0:02:07.9]} 26... Qd5 {[%clk 0:01:05.8]} 27. Qc1 {[%clk 0:02:01.6]} 27...
e5 {[%clk 0:01:02.1]} 28. c4 {[%clk 0:01:57.6]} 28... Qb7 {[%clk 0:00:56.1]} 29.
Qd1 {[%clk 0:01:52.4]} 29... f6 {[%clk 0:00:46.3]} 30. Be3 {[%clk 0:01:40.1]}
30... Rd8 {[%clk 0:00:41.3]} 31. b4 {[%clk 0:01:40.7]} 31... h5 {[%clk
0:00:34.9]} 32. Qd3 {[%clk 0:01:31.1]} 32... d5 {[%clk 0:00:33.8]} 33. b5 {[%clk
0:01:22.3]} 33... axb5 {[%clk 0:00:32.7]} 34. cxb5 {[%clk 0:01:23.2]} 34... d4
{[%clk 0:00:32.8]} 35. Bd2 {[%clk 0:01:23.9]} 35... e4 {[%clk 0:00:28.8]} 36.
Rxe4 {[%clk 0:01:15.1]} 36... Qxb5 {[%clk 0:00:29]} 37. Qg3 {[%clk 0:01:13.6]}
37... Kf7 {[%clk 0:00:19.4]} 38. Qa3 {[%clk 0:01:13.7]} 38... Rd7 {[%clk
0:00:18.2]} 39. Qa8 {[%clk 0:01:04.8]} 39... Rb7 {[%clk 0:00:13]} 40. Qh8 {[%clk
0:00:58]} 40... Re5 {[%clk 0:00:13]} 41. Rxd4 {[%clk 0:00:48]} 41... Qe2 {[%clk
0:00:04.5]} 42. Qh7+ {[%clk 0:00:45]} 1-0

[Event "Late-Titled-Tuesday-Blitz-October-10-2023"]
[Site "Chess.com"]
[Date "2023.10.10"]
[Round "2"]
[White "AlexOstrovskiy"]
[Black "Javylavilla"]
[Result "1-0"]
[WhiteElo "2614"]
[BlackElo "2365"]
[TimeControl "180+1"]
[EndTime "14:17:13 PDT"]
[Termination "AlexOstrovskiy won by resignation"]

1. d4 {[%clk 0:03:00.9]} 1... Nf6 {[%clk 0:02:59.1]} 2. Bf4 {[%clk 0:02:59.5]}
2... d5 {[%clk 0:02:58.3]} 3. e3 {[%clk 0:02:59.6]} 3... c5 {[%clk 0:02:58.2]}
4. c3 {[%clk 0:02:59.1]} 4... Nc6 {[%clk 0:02:57.7]} 5. Nd2 {[%clk 0:02:59.1]}
5... Qb6 {[%clk 0:02:57.1]} 6. Qb3 {[%clk 0:02:59.1]} 6... c4 {[%clk 0:02:49.8]}
7. Qc2 {[%clk 0:02:58]} 7... e6 {[%clk 0:02:47.9]} 8. e4 {[%clk 0:02:53.7]} 8...
Qa5 {[%clk 0:02:46.5]} 9. e5 {[%clk 0:02:52.5]} 9... Nd7 {[%clk 0:02:45.7]} 10.
h4 {[%clk 0:02:44.1]} 10... b5 {[%clk 0:02:44.3]} 11. h5 {[%clk 0:02:42.3]}
11... b4 {[%clk 0:02:39.2]} 12. g4 {[%clk 0:02:27.7]} 12... Nb6 {[%clk
0:02:38.1]} 13. Bg2 {[%clk 0:02:23.3]} 13... Bd7 {[%clk 0:02:32.6]} 14. Ne2
{[%clk 0:02:23]} 14... Rb8 {[%clk 0:02:23.5]} 15. O-O {[%clk 0:02:22.7]} 15...
Na4 {[%clk 0:02:16.9]} 16. Rab1 {[%clk 0:02:15]} 16... Be7 {[%clk 0:02:09.8]}
17. Be3 {[%clk 0:02:12.9]} 17... f6 {[%clk 0:01:47.1]} 18. f4 {[%clk 0:02:09.3]}
18... O-O {[%clk 0:01:38]} 19. Nf3 {[%clk 0:01:50.5]} 19... f5 {[%clk
0:01:30.1]} 20. gxf5 {[%clk 0:01:43.1]} 20... Rxf5 {[%clk 0:01:31]} 21. Ng3
{[%clk 0:01:35.1]} 21... Rff8 {[%clk 0:01:27]} 22. Bd2 {[%clk 0:01:12.2]} 22...
bxc3 {[%clk 0:01:16.7]} 23. bxc3 {[%clk 0:01:11.4]} 23... Rxb1 {[%clk
0:01:10.3]} 24. Rxb1 {[%clk 0:01:12.3]} 24... Nb6 {[%clk 0:00:57.6]} 25. Bh3
{[%clk 0:01:03.4]} 25... Nd8 {[%clk 0:00:51.8]} 26. Rf1 {[%clk 0:00:51.8]} 26...
Ba3 {[%clk 0:00:50.8]} 27. f5 {[%clk 0:00:49.7]} 27... exf5 {[%clk 0:00:41.4]}
28. Bxf5 {[%clk 0:00:36.7]} 28... Bxf5 {[%clk 0:00:40.5]} 29. Nxf5 {[%clk
0:00:37.6]} 29... Qa4 {[%clk 0:00:39.8]} 30. Qb1 {[%clk 0:00:35.8]} 30... Qd7
{[%clk 0:00:39.1]} 31. Ng5 {[%clk 0:00:29.9]} 31... g6 {[%clk 0:00:38.2]} 32.
hxg6 {[%clk 0:00:19.1]} 32... hxg6 {[%clk 0:00:39.1]} 33. Nh6+ {[%clk
0:00:15.6]} 33... Kg7 {[%clk 0:00:39.3]} 34. Rxf8 {[%clk 0:00:15.8]} 34... Kxf8
{[%clk 0:00:39.3]} 35. Qxg6 {[%clk 0:00:16.4]} 35... Qg7 {[%clk 0:00:31.4]} 36.
Nh7+ {[%clk 0:00:13.1]} 36... Qxh7 {[%clk 0:00:22.2]} 37. Qxh7 {[%clk 0:00:14]}
1-0

[Event "Late-Titled-Tuesday-Blitz-October-10-2023"]
[Site "Chess.com"]
[Date "2023.10.10"]
[Round "2"]
[White "DopplerCharlotteDeWitte"]
[Black "Herman-NY"]
[Result "0-1"]
[WhiteElo "2778"]
[BlackElo "2551"]
[TimeControl "180+1"]
[EndTime "14:17:17 PDT"]
[Termination "Herman-NY won by resignation"]

1. e4 {[%clk 0:03:00.9]} 1... e5 {[%clk 0:03:00]} 2. Nf3 {[%clk 0:03:01.4]} 2...
Nc6 {[%clk 0:03:00.2]} 3. d4 {[%clk 0:03:02.1]} 3... exd4 {[%clk 0:03:00.2]} 4.
Nxd4 {[%clk 0:03:03]} 4... Bc5 {[%clk 0:02:58.5]} 5. Nb3 {[%clk 0:03:02.8]} 5...
Bb6 {[%clk 0:02:58.1]} 6. Nc3 {[%clk 0:03:03.5]} 6... a5 {[%clk 0:02:49.6]} 7.
Bb5 {[%clk 0:02:57.8]} 7... d6 {[%clk 0:02:40.6]} 8. Nd5 {[%clk 0:02:50.6]} 8...
Ba7 {[%clk 0:02:40.6]} 9. O-O {[%clk 0:02:46.4]} 9... a4 {[%clk 0:02:39.4]} 10.
Nd4 {[%clk 0:02:43.6]} 10... Bd7 {[%clk 0:02:38.9]} 11. Nf5 {[%clk 0:02:38.9]}
11... g6 {[%clk 0:02:36.1]} 12. Nxc7+ {[%clk 0:02:25.4]} 12... Qxc7 {[%clk
0:02:34.1]} 13. Nxd6+ {[%clk 0:02:26.3]} 13... Kf8 {[%clk 0:02:26.1]} 14. Bf4
{[%clk 0:02:18.5]} 14... Be6 {[%clk 0:01:02.2]} 15. Bg3 {[%clk 0:02:08.7]} 15...
Rd8 {[%clk 0:00:33.2]} 16. Bxa4 {[%clk 0:02:08.4]} 16... Bc5 {[%clk 0:00:20.5]}
17. e5 {[%clk 0:01:55.3]} 17... Nxe5 {[%clk 0:00:19]} 18. Bxe5 {[%clk
0:01:53.5]} 18... Bxd6 {[%clk 0:00:19.5]} 19. Bxd6+ {[%clk 0:01:39.8]} 19...
Rxd6 {[%clk 0:00:19.8]} 20. Qf3 {[%clk 0:01:35.9]} 20... Kg7 {[%clk 0:00:20]}
21. Bb3 {[%clk 0:01:34.4]} 21... Nf6 {[%clk 0:00:19.9]} 22. h3 {[%clk
0:01:33.2]} 22... Rhd8 {[%clk 0:00:19.2]} 23. Rfe1 {[%clk 0:01:31.5]} 23... Bxb3
{[%clk 0:00:13.6]} 24. cxb3 {[%clk 0:01:32.4]} 24... Rd2 {[%clk 0:00:11.8]} 25.
Rac1 {[%clk 0:01:29.3]} 25... Qb6 {[%clk 0:00:09.8]} 26. Re2 {[%clk 0:01:16.7]}
26... Rd1+ {[%clk 0:00:07.9]} 27. Rxd1 {[%clk 0:01:14.9]} 27... Rxd1+ {[%clk
0:00:08.8]} 28. Kh2 {[%clk 0:01:15.5]} 28... Qd6+ {[%clk 0:00:09.1]} 29. g3
{[%clk 0:01:16.1]} 29... Rd5 {[%clk 0:00:09.2]} 30. Kg2 {[%clk 0:01:10.2]} 30...
Rd1 {[%clk 0:00:08.4]} 31. Qxb7 {[%clk 0:01:08.3]} 31... h5 {[%clk 0:00:07.5]}
32. Re7 {[%clk 0:01:05.4]} 32... Qd5+ {[%clk 0:00:04.5]} 33. Qxd5 {[%clk
0:01:05.8]} 33... Rxd5 {[%clk 0:00:04.4]} 34. a4 {[%clk 0:01:03.4]} 34... Rd2
{[%clk 0:00:03.9]} 35. b4 {[%clk 0:01:02.3]} 35... Rxb2 {[%clk 0:00:04.4]} 36.
b5 {[%clk 0:01:02.7]} 36... Rb4 {[%clk 0:00:04.3]} 37. Ra7 {[%clk 0:01:03.1]}
37... Nd5 {[%clk 0:00:04.2]} 38. Kf3 {[%clk 0:00:45.2]} 38... Nc3 {[%clk
0:00:04.4]} 39. Ke3 {[%clk 0:00:45.7]} 39... Nxa4 {[%clk 0:00:04.7]} 40. Kd3
{[%clk 0:00:37.6]} 40... Nb6 {[%clk 0:00:05.1]} 41. Kc3 {[%clk 0:00:38.5]} 41...
Rxb5 {[%clk 0:00:05.6]} 42. Rb7 {[%clk 0:00:37.7]} 42... Nd5+ {[%clk 0:00:05.9]}
43. Kd4 {[%clk 0:00:37.3]} 43... Rxb7 {[%clk 0:00:06.8]} 44. Kxd5 {[%clk
0:00:38.2]} 44... Re7 {[%clk 0:00:07.4]} 45. f4 {[%clk 0:00:38.4]} 45... Re6
{[%clk 0:00:08.3]} 46. g4 {[%clk 0:00:38.6]} 46... hxg4 {[%clk 0:00:08.4]} 47.
hxg4 {[%clk 0:00:39.5]} 47... Kf6 {[%clk 0:00:08.9]} 48. Kd4 {[%clk 0:00:39.2]}
48... Re8 {[%clk 0:00:09.1]} 49. Kd5 {[%clk 0:00:39.5]} 49... g5 {[%clk
0:00:09.8]} 50. f5 {[%clk 0:00:39.8]} 50... Re1 {[%clk 0:00:10.2]} 51. Kd4
{[%clk 0:00:40.7]} 51... Rg1 {[%clk 0:00:10.5]} 0-1

[Event "Late-Titled-Tuesday-Blitz-October-10-2023"]
[Site "Chess.com"]
[Date "2023.10.10"]
[Round "2"]
[White "hellokostya"]
[Black "ferdipy"]
[Result "0-1"]
[WhiteElo "2632"]
[BlackElo "2364"]
[TimeControl "180+1"]
[EndTime "14:17:17 PDT"]
[Termination "ferdipy won on time"]

1. d4 {[%clk 0:03:00.1]} 1... e5 {[%clk 0:03:00.1]} 2. dxe5 {[%clk 0:02:59.2]}
2... d6 {[%clk 0:03:00.7]} 3. Nf3 {[%clk 0:02:56.1]} 3... Nc6 {[%clk 0:03:00.8]}
4. Nc3 {[%clk 0:02:52.5]} 4... Bg4 {[%clk 0:02:59.7]} 5. Bg5 {[%clk 0:02:50.9]}
5... f6 {[%clk 0:02:59.7]} 6. exf6 {[%clk 0:02:49.8]} 6... gxf6 {[%clk
0:03:00.6]} 7. Bf4 {[%clk 0:02:43.1]} 7... Qe7 {[%clk 0:03:00.9]} 8. e3 {[%clk
0:02:41]} 8... O-O-O {[%clk 0:03:00.3]} 9. Bb5 {[%clk 0:02:40.8]} 9... Ne5
{[%clk 0:03:00.3]} 10. Be2 {[%clk 0:02:30.1]} 10... h5 {[%clk 0:03:00.2]} 11. h3
{[%clk 0:02:29.9]} 11... Bd7 {[%clk 0:02:59.7]} 12. Qd4 {[%clk 0:02:22.2]} 12...
Nh6 {[%clk 0:02:58.2]} 13. Qxa7 {[%clk 0:02:18.4]} 13... Nc6 {[%clk 0:02:58.8]}
14. Qa8+ {[%clk 0:02:15.4]} 14... Nb8 {[%clk 0:02:59.4]} 15. O-O-O {[%clk
0:02:09.9]} 15... Nf5 {[%clk 0:02:53.7]} 16. Nd5 {[%clk 0:02:03.3]} 16... Qf7
{[%clk 0:02:53.2]} 17. Kb1 {[%clk 0:02:00.5]} 17... Bc6 {[%clk 0:02:28.1]} 18.
Bc4 {[%clk 0:01:58.7]} 18... Qg6 {[%clk 0:02:02.1]} 19. Qa5 {[%clk 0:01:39.8]}
19... b6 {[%clk 0:02:00]} 20. Nxb6+ {[%clk 0:01:36.2]} 20... cxb6 {[%clk
0:01:58.2]} 21. Qxb6 {[%clk 0:01:37.1]} 21... Rd7 {[%clk 0:01:55.7]} 22. Be6
{[%clk 0:01:23.2]} 22... Rh7 {[%clk 0:01:40.4]} 23. Rd3 {[%clk 0:01:17.5]} 23...
Qxg2 {[%clk 0:01:35.5]} 24. Rhd1 {[%clk 0:01:03.7]} 24... Qxf3 {[%clk
0:01:31.8]} 25. Bxf5 {[%clk 0:01:03.7]} 25... Rg7 {[%clk 0:01:13.1]} 26. Bg3
{[%clk 0:00:56.3]} 26... Qxf5 {[%clk 0:01:08.3]} 27. Rc3 {[%clk 0:00:53.5]}
27... Rc7 {[%clk 0:01:05]} 28. a3 {[%clk 0:00:51.1]} 28... Qb5 {[%clk
0:01:00.4]} 29. Qd4 {[%clk 0:00:49]} 29... Rgd7 {[%clk 0:00:51.6]} 30. Rb3
{[%clk 0:00:43.9]} 30... Qc5 {[%clk 0:00:49.3]} 31. Qxf6 {[%clk 0:00:40.5]}
31... Bg7 {[%clk 0:00:46.8]} 32. Qe6 {[%clk 0:00:37.6]} 32... Ba4 {[%clk
0:00:45]} 33. Qg8+ {[%clk 0:00:19.5]} 33... Rd8 {[%clk 0:00:43.7]} 34. Qe6+
{[%clk 0:00:20.1]} 34... Nd7 {[%clk 0:00:37.5]} 35. Rc3 {[%clk 0:00:11.2]} 35...
Bxc3 {[%clk 0:00:36.8]} 36. Bxd6 {[%clk 0:00:11.7]} 36... Qb5 {[%clk 0:00:24.9]}
37. b4 {[%clk 0:00:07.7]} 37... Rc6 {[%clk 0:00:21]} 0-1

[Event "Late-Titled-Tuesday-Blitz-October-10-2023"]
[Site "Chess.com"]
[Date "2023.10.10"]
[Round "2"]
[White "Dacean99"]
[Black "TigrVShlyape"]
[Result "0-1"]
[WhiteElo "2593"]
[BlackElo "2935"]
[TimeControl "180+1"]
[EndTime "14:17:22 PDT"]
[Termination "TigrVShlyape won by resignation"]

1. d4 {[%clk 0:03:00.9]} 1... d5 {[%clk 0:02:55.8]} 2. Nf3 {[%clk 0:03:01.4]}
2... Nf6 {[%clk 0:02:55.4]} 3. c4 {[%clk 0:03:02]} 3... c6 {[%clk 0:02:56]} 4.
Nc3 {[%clk 0:03:01.3]} 4... a6 {[%clk 0:02:56.4]} 5. cxd5 {[%clk 0:03:01]} 5...
cxd5 {[%clk 0:02:56.3]} 6. Bf4 {[%clk 0:03:01.6]} 6... e6 {[%clk 0:02:55.6]} 7.
e3 {[%clk 0:03:02.2]} 7... Bd6 {[%clk 0:02:55.8]} 8. Bg3 {[%clk 0:03:01.8]} 8...
Bxg3 {[%clk 0:02:49.4]} 9. hxg3 {[%clk 0:03:02.7]} 9... Nc6 {[%clk 0:02:48.1]}
10. Bd3 {[%clk 0:03:02.7]} 10... Qd6 {[%clk 0:02:47.1]} 11. Rc1 {[%clk
0:03:01.4]} 11... h6 {[%clk 0:02:46.6]} 12. Bb1 {[%clk 0:03:01.2]} 12... Bd7
{[%clk 0:02:45.8]} 13. a3 {[%clk 0:02:59.2]} 13... Kf8 {[%clk 0:02:39.2]} 14.
Na4 {[%clk 0:02:52.6]} 14... Ke7 {[%clk 0:02:18.3]} 15. Nb6 {[%clk 0:02:38.1]}
15... Rab8 {[%clk 0:02:17.7]} 16. Nxd7 {[%clk 0:02:37.6]} 16... Nxd7 {[%clk
0:02:16]} 17. g4 {[%clk 0:02:34.4]} 17... Nf6 {[%clk 0:02:15.3]} 18. Nd2 {[%clk
0:02:28.4]} 18... Rhc8 {[%clk 0:02:12.8]} 19. O-O {[%clk 0:02:21.5]} 19... Rc7
{[%clk 0:02:12]} 20. Nb3 {[%clk 0:02:18.9]} 20... b6 {[%clk 0:02:10.7]} 21. f4
{[%clk 0:02:11.6]} 21... Rh8 {[%clk 0:01:47.5]} 22. Qf3 {[%clk 0:02:09.7]} 22...
Nd7 {[%clk 0:01:43.9]} 23. Bd3 {[%clk 0:02:06.7]} 23... a5 {[%clk 0:01:42.7]}
24. Rc2 {[%clk 0:02:02.4]} 24... Na7 {[%clk 0:01:37.6]} 25. Rfc1 {[%clk
0:02:00.9]} 25... Rxc2 {[%clk 0:01:37.2]} 26. Rxc2 {[%clk 0:02:01.8]} 26... Rc8
{[%clk 0:01:36.9]} 27. Qe2 {[%clk 0:01:59]} 27... Rxc2 {[%clk 0:01:35.7]} 28.
Qxc2 {[%clk 0:01:59.9]} 28... g5 {[%clk 0:01:34.4]} 29. g3 {[%clk 0:01:59]}
29... Nf6 {[%clk 0:01:30.1]} 30. Be2 {[%clk 0:01:50.9]} 30... Kf8 {[%clk
0:01:28.7]} 31. Kg2 {[%clk 0:01:49.3]} 31... Kg7 {[%clk 0:01:28.7]} 32. Nd2
{[%clk 0:01:47.5]} 32... Qc6 {[%clk 0:01:21.2]} 33. Qb3 {[%clk 0:01:41.5]} 33...
b5 {[%clk 0:01:16.7]} 34. fxg5 {[%clk 0:01:29.7]} 34... hxg5 {[%clk 0:01:16]}
35. Nf3 {[%clk 0:01:30.4]} 35... Ne4 {[%clk 0:01:07.8]} 36. Bd3 {[%clk
0:01:27.3]} 36... f6 {[%clk 0:00:45.2]} 37. Qd1 {[%clk 0:01:20.7]} 37... Nc8
{[%clk 0:00:43.8]} 38. Bb1 {[%clk 0:01:16.3]} 38... Ncd6 {[%clk 0:00:43.1]} 39.
Qd3 {[%clk 0:01:16.8]} 39... Qc1 {[%clk 0:00:41]} 40. b4 {[%clk 0:01:10.8]}
40... a4 {[%clk 0:00:39.7]} 41. Bc2 {[%clk 0:01:07.1]} 41... Nc4 {[%clk
0:00:39.2]} 42. Bb1 {[%clk 0:00:52.8]} 42... Nxa3 {[%clk 0:00:36.3]} 43. Ba2
{[%clk 0:00:36.2]} 43... Qc2+ {[%clk 0:00:35.8]} 44. Qxc2 {[%clk 0:00:35.9]}
44... Nxc2 {[%clk 0:00:36.7]} 45. Bb1 {[%clk 0:00:34.9]} 45... Nxb4 {[%clk
0:00:33.8]} 46. Bxe4 {[%clk 0:00:32.7]} 46... dxe4 {[%clk 0:00:33.9]} 47. Nd2
{[%clk 0:00:33.6]} 47... a3 {[%clk 0:00:31.5]} 48. Nb3 {[%clk 0:00:29]} 48...
Nc2 {[%clk 0:00:30.5]} 49. Nc1 {[%clk 0:00:24.8]} 49... b4 {[%clk 0:00:30]} 50.
Kf2 {[%clk 0:00:22.3]} 50... Na1 {[%clk 0:00:30.2]} 51. d5 {[%clk 0:00:18.5]}
51... exd5 {[%clk 0:00:29.8]} 0-1